bitfinex/quotes_SOLUSD_20250924
["timestamp","ask_amount","ask_price","bid_price","bid_amount"]
[1758675565522,37.77776094,214.01,213.96,14.28559401]
[1758675565725,1.17081941,214.0,213.96,14.28559401]
[1758675566017,26.0,213.98,213.97,18.95914637]
[1758675566236,1.45776094,214.03,213.97,5.36355236]
[1758675566418,26.0,214.0,213.97,5.36355236]
[1758675566618,26.0,214.0,213.98,0.69]
[1758675566944,26.0,214.0,213.98,14.28559401]
[1758675568132,26.0,214.0,213.99,4.67311556]
[1758675568330,26.0,214.0,213.98,13.59559401]
[1758675569846,26.0,214.0,213.98,18.26892094]
[1758675570535,26.0,214.0,213.95,0.69]
[1758675570738,26.0,214.0,213.96,14.28559401]
[1758675571235,26.0,214.0,213.97,0.69]
[1758675571936,133.9,213.99,213.97,0.69]
[1758675572843,133.9,213.99,213.97,5.36338656]
[1758675576853,0.57,213.98,213.93,13.59559401]
[1758675577154,133.9,213.99,213.95,13.59559401]
[1758675577324,134.47,213.99,213.95,13.59559401]
[1758675577524,134.47,213.99,213.95,14.28559401]
[1758675577728,136.17584371,213.99,213.93,4.67442621]
[1758675577936,2.84584371,213.98,213.94,13.59559401]
[1758675578840,26.0,213.98,213.94,18.95967882]
[1758675579650,26.0,213.97,213.94,18.26967882]
[1758675579836,26.0,213.97,213.94,18.95967882]
[1758675580154,26.0,213.98,213.95,0.69]
[1758675580535,26.0,213.98,213.88,0.69]
[1758675580536,2.27584371,213.96,213.88,0.69]
[1758675580731,26.0,213.92,213.88,0.69]
[1758675580950,26.0,213.9,213.88,0.69]
[1758675581137,26.0,213.9,213.87,4.67572076]
[1758675581341,26.0,213.9,213.87,5.36572076]
[1758675582631,26.0,213.92,213.88,14.28559401]
[1758675582834,26.0,213.92,213.9,13.59559401]
[1758675583155,26.0,213.95,213.92,13.59559401]
[1758675583346,26.0,213.95,213.92,14.28559401]
[1758675584739,26.0,213.95,213.93,4.67442621]
[1758675584958,30.67416195,213.95,213.85,4.67617488]
[1758675585156,2.27584371,213.93,213.87,0.69]
[1758675585547,2.27584371,213.94,213.88,13.59559401]
[1758675585745,69.3098344,213.95,213.89,0.69]
[1758675585947,69.3098344,213.95,213.88,13.59559401]
[1758675585948,2.27584371,213.91,213.88,13.59559401]
[1758675586386,2.27584371,213.91,213.85,14.28559401]
[1758675586543,2.27584371,213.91,213.85,0.69]
[1758675586745,2.27584371,213.89,213.85,13.59559401]
[1758675586948,2.27584371,213.89,213.85,18.27176403]
[1758675587346,2.27584371,213.89,213.85,18.96176403]
[1758675587750,26.0,213.88,213.85,18.96176403]
[1758675589069,6.95095347,213.9,213.84,13.59559401]
[1758675589372,2.27584371,213.89,213.84,13.59559401]
[1758675589548,2.27584371,213.89,213.84,14.28559401]
[1758675590646,2.27584371,213.89,213.84,18.2719074]
[1758675590866,2.27584371,213.89,213.85,0.66]
[1758675592588,28.27584371,213.89,213.85,0.66]
[1758675592876,2.27584371,213.89,213.86,0.66]
[1758675593481,28.27584371,213.9,213.85,4.67614925]
[1758675593651,28.27584371,213.9,213.85,5.33614925]
[1758675594764,33.52093048,213.9,213.85,5.33614925]
[1758675595464,28.27584371,213.9,213.86,0.66]
[1758675595774,26.0,213.89,213.86,0.66]
[1758675595962,26.0,213.89,213.85,4.67614925]
[1758675596165,133.9,213.93,213.88,13.59559401]
[1758675596474,133.9,213.93,213.89,0.66]
[1758675596771,133.9,213.93,213.9,4.67508181]
[1758675596973,133.9,213.93,213.91,0.66]
[1758675599955,133.9,213.93,213.92,4.67464472]
[1758675600354,133.9,213.93,213.92,5.33464472]
[1758675600559,133.9,213.93,213.92,18.93023873]
[1758675600772,2.27584371,213.95,213.89,0.66]
[1758675600963,28.84584371,213.93,213.87,13.59559401]
[1758675601356,28.84584371,213.93,213.85,13.59559401]
[1758675601357,2.27584371,213.91,213.85,13.59559401]
[1758675601559,2.84584371,213.9,213.83,0.66]
[1758675601870,26.0,213.88,213.85,4.67617488]
[1758675602076,26.0,213.87,213.84,13.59559401]
[1758675602452,26.0,213.87,213.84,18.93193945]
[1758675602649,2.84584371,213.9,213.84,18.93193945]
[1758675602650,26.0,213.88,213.84,18.93193945]
[1758675603369,28.84584371,213.9,213.84,18.27193945]
[1758675603577,28.27584371,213.9,213.85,0.66]
[1758675603775,28.84584371,213.9,213.85,0.66]
[1758675604360,26.0,213.9,213.86,4.67595623]
[1758675604560,26.0,213.9,213.86,5.33595623]
[1758675604970,26.0,213.88,213.86,0.66]
[1758675605285,26.0,213.87,213.84,13.59559401]
[1758675606069,26.0,213.87,213.84,14.25559401]
[1758675606395,0.57,213.89,213.85,4.67617488]
[1758675606682,26.0,213.88,213.85,4.67617488]
[1758675607374,4.67467591,213.92,213.85,4.67617488]
[1758675607574,26.0,213.88,213.85,5.33617488]
[1758675608380,26.0,213.88,213.85,4.67617488]
[1758675609602,28.27584371,213.86,213.8,0.66]
[1758675609759,28.27584371,213.86,213.83,0.66]
[1758675609760,26.0,213.86,213.83,0.66]
[1758675610254,26.0,213.85,213.83,0.66]
[1758675610453,26.0,213.84,213.81,4.67704971]
[1758675611075,2.84584371,213.85,213.81,4.67704971]
[1758675611581,2.27584371,213.84,213.81,4.67704971]
[1758675612469,2.27584371,213.84,213.8,18.2728224]
[1758675612700,2.84584371,213.83,213.78,13.69559401]
[1758675612887,2.27584371,213.83,213.78,13.69559401]
[1758675613077,2.27584371,213.83,213.79,0.68]
[1758675614092,26.0,213.84,213.81,13.59559401]
[1758675614301,26.0,213.84,213.82,0.68]
[1758675614780,26.0,213.84,213.83,0.68]
[1758675615181,26.0,213.84,213.81,14.27559401]
[1758675615483,26.0,213.84,213.82,0.68]
[1758675616288,26.0,213.84,213.83,4.67661226]
[1758675617897,26.0,213.84,213.82,4.67683097]
[1758675618108,2.27584371,213.83,213.81,13.59559401]
[1758675618289,28.27584371,213.84,213.82,0.68]
[1758675618696,2.27584371,213.83,213.79,5.35748725]
[1758675619206,28.27584371,213.84,213.8,0.68]
[1758675619390,133.9,213.83,213.81,0.68]
[1758675620207,133.9,213.83,213.81,5.3569606]
[1758675620995,133.9,213.83,213.81,0.68]
[1758675621306,136.17584371,213.83,213.81,0.68]
[1758675621810,136.17584371,213.83,213.79,0.69]
[1758675621994,136.17584371,213.83,213.8,0.69]
[1758675622190,136.17584371,213.83,213.8,5.36709852]
[1758675623294,136.17584371,213.83,213.79,4.67744972]
[1758675623490,136.17584371,213.83,213.79,5.36744972]
[1758675623695,136.17584371,213.83,213.8,0.69]
[1758675624306,136.17584371,213.83,213.79,4.67744972]
[1758675624503,136.17584371,213.83,213.79,5.36744972]
[1758675625208,2.27584371,213.81,213.78,0.1]
[1758675625509,2.27584371,213.8,213.78,0.1]
[1758675626105,2.27584371,213.81,213.78,4.77769647]
[1758675626818,2.27584371,213.81,213.78,0.1]
[1758675627512,2.27584371,213.81,213.78,4.77760358]
[1758675627808,26.0,213.8,213.79,0.69]
[1758675627986,26.0,213.8,213.78,4.77760358]
[1758675628197,26.0,213.8,213.78,7.05344729]
[1758675628599,26.0,213.8,213.79,0.69]
[1758675629026,26.0,213.8,213.79,5.36748725]
[1758675631506,133.9,213.82,213.8,13.59559401]
[1758675631815,2.27584371,213.88,213.81,2.96584371]
[1758675632114,2.27584371,213.86,213.8,14.28559401]
[1758675632295,2.27584371,213.85,213.8,14.28559401]
[1758675632491,2.27584371,213.85,213.8,13.59559401]
[1758675632718,2.27584371,213.84,213.8,14.28559401]
[1758675633210,28.27584371,213.84,213.81,4.67704971]
[1758675633417,26.0,213.84,213.81,4.67704971]
[1758675635004,26.0,213.84,213.81,5.36704971]
[1758675635394,27.45881549,213.84,213.78,0.1]
[1758675635594,26.0,213.81,213.78,0.1]
[1758675636005,26.0,213.81,213.78,4.77764227]
[1758675636204,26.0,213.81,213.78,5.46764227]
[1758675636623,26.0,213.81,213.78,4.77764227]
[1758675637434,26.0,213.81,213.78,16.4719074]
[1758675637595,26.0,213.81,213.78,0.1]
[1758675637596,27.45881549,213.81,213.78,0.1]
[1758675637801,26.0,213.81,213.78,4.77770173]
[1758675638009,26.0,213.8,213.78,4.77770173]
[1758675640597,26.0,213.8,213.78,0.1]
[1758675641322,26.0,213.8,213.78,4.77765167]
[1758675641709,26.0,213.8,213.78,0.1]
[1758675643029,133.9,213.79,213.78,0.1]
[1758675643838,26.0,213.79,213.78,0.1]
[1758675651441,1.45881549,213.8,213.78,0.1]
[1758675651442,1.45881549,213.8,213.78,4.77770605]
[1758675652438,26.0,213.79,213.78,4.77770605]
[1758675653339,1.45881549,213.8,213.78,4.77770605]
[1758675653633,26.0,213.79,213.78,0.1]
[1758675653852,26.57,213.79,213.78,0.1]
[1758675654346,26.0,213.79,213.78,0.1]
[1758675657225,26.0,213.84,213.78,5.43770605]
[1758675657436,1.45881549,213.88,213.81,1.45881549]
[1758675657743,29.05262337,213.87,213.82,0.66]
[1758675657927,26.0,213.87,213.83,13.59559401]
[1758675658121,26.0,213.87,213.84,0.66]
[1758675658323,26.0,213.87,213.85,0.66]
[1758675658824,26.0,213.87,213.85,5.33598998]
[1758675659235,2.02881549,213.86,213.79,0.66]
[1758675659537,26.0,213.84,213.79,14.25559401]
[1758675659733,27.45881549,213.84,213.8,0.66]
[1758675659916,1.45881549,213.84,213.81,0.66]
[1758675660111,27.45881549,213.84,213.81,0.66]
[1758675660333,27.45881549,213.84,213.79,14.25559401]
[1758675660548,26.57,213.84,213.79,14.25559401]
[1758675660721,1.45881549,213.83,213.79,14.25559401]
[1758675660916,1.45881549,213.83,213.8,5.33726847]
[1758675660917,27.45881549,213.83,213.8,5.33726847]
[1758675661320,26.0,213.82,213.78,0.76]
[1758675661518,26.0,213.81,213.79,0.66]
[1758675661734,26.0,213.81,213.8,0.66]
[1758675661933,26.0,213.81,213.78,4.77757756]
[1758675662140,2.02881549,213.83,213.78,5.43757756]
[1758675662356,1.45881549,213.83,213.79,0.66]
[1758675662555,1.45881549,213.83,213.78,4.77757756]
[1758675662863,1.45881549,213.83,213.8,0.66]
[1758675663147,26.0,213.82,213.78,0.1]
[1758675663330,26.0,213.82,213.79,0.66]
[1758675663923,133.9,213.81,213.79,0.66]
[1758675664446,133.9,213.81,213.8,4.67726847]
[1758675664945,133.9,213.81,213.8,5.33726847]
[1758675665238,133.9,213.81,213.79,4.67748725]
[1758675665448,133.9,213.81,213.79,5.33748725]
[1758675666436,133.9,213.81,213.79,0.66]
[1758675667023,26.0,213.79,213.78,0.1]
[1758675667943,26.0,213.79,213.78,5.43770605]
[1758675668644,133.9,213.81,213.78,17.13197118]
[1758675669133,133.9,213.81,213.79,0.66]
[1758675669322,133.9,213.81,213.8,4.67726847]
[1758675669647,133.9,213.81,213.8,5.33726847]
[1758675672428,133.9,213.81,213.8,18.93286248]
[1758675672750,1.45881549,213.87,213.81,13.59559401]
[1758675672952,1.45881549,213.88,213.83,13.59559401]
[1758675673255,1.45881549,213.89,213.84,0.66]
[1758675673443,1.45881549,213.89,213.85,4.67617488]
[1758675673639,135.35881549,213.91,213.86,0.66]
[1758675673839,135.35881549,213.91,213.85,16.3666121]
[1758675673840,26.0,213.88,213.87,0.66]
[1758675674048,26.0,213.88,213.84,4.67630565]
[1758675674542,26.0,213.88,213.85,14.25559401]
[1758675674739,26.0,213.88,213.86,0.66]
[1758675674958,28.02881549,213.87,213.81,13.59559401]
[1758675675138,1.45881549,213.85,213.81,13.59559401]
[1758675675338,27.45881549,213.85,213.81,18.27258512]
[1758675675761,27.45881549,213.85,213.81,18.93258512]
[1758675676759,26.0,213.85,213.81,5.33699111]
[1758675678652,133.9,213.84,213.81,5.33699111]
[1758675680760,133.9,213.84,213.8,4.67725625]
[1758675680948,133.9,213.84,213.8,5.34725625]
[1758675681452,133.9,213.84,213.8,4.67725625]
[1758675681651,133.9,213.84,213.81,0.67]
[1758675682037,133.9,213.84,213.81,5.34696749]
[1758675682433,133.9,213.84,213.82,0.67]
[1758675682653,133.9,213.84,213.81,4.67696749]
[1758675682864,133.9,213.84,213.81,5.34696749]
[1758675683063,133.9,213.84,213.82,0.67]
[1758675683451,133.9,213.84,213.81,16.36959178]
[1758675683761,133.9,213.84,213.81,17.03959178]
[1758675686761,133.9,213.84,213.81,5.34696749]
[1758675688278,133.9,213.84,213.81,4.67696749]
[1758675688860,133.9,213.84,213.81,5.34696749]
[1758675690486,133.9,213.83,213.81,5.34696749]
[1758675692280,134.47,213.83,213.79,4.6773522]
[1758675692462,0.57,213.83,213.79,4.6773522]
[1758675692867,0.57,213.83,213.79,5.3473522]
[1758675693261,1.45881549,213.84,213.79,4.6773522]
[1758675693462,26.0,213.83,213.79,5.3473522]
[1758675693984,26.0,213.83,213.8,0.67]
[1758675694577,26.0,213.83,213.79,4.6773522]
[1758675694785,26.0,213.83,213.79,5.3473522]
[1758675695678,26.0,213.82,213.79,5.3473522]
[1758675696663,26.0,213.83,213.78,4.7777052]
[1758675696863,0.57,213.82,213.78,4.7777052]
[1758675697478,0.57,213.82,213.78,5.4477052]
[1758675698580,28.84974508,213.81,213.78,0.1]
[1758675698778,28.27974508,213.81,213.78,0.1]
[1758675698980,0.57,213.8,213.78,0.1]
[1758675699172,26.57,213.8,213.78,0.1]
[1758675699679,26.0,213.8,213.78,0.1]
[1758675700581,2.84974508,213.79,213.78,0.1]
[1758675701566,2.27974508,213.79,213.78,0.1]
[1758675704388,2.84974508,213.79,213.78,0.1]
[1758675704890,4.02145624,213.79,213.78,0.1]
[1758675705189,1.74171116,213.79,213.78,0.1]
[1758675705392,4.02145624,213.79,213.78,0.1]
[1758675706477,26.0,213.76,213.75,0.1]
[1758675706691,65.79145624,213.76,213.75,0.1]
[1758675706886,66.36145624,213.76,213.75,0.1]
[1758675707468,79.95705025,213.76,213.75,0.1]
[1758675708497,84.63519396,213.76,213.75,0.1]
[1758675709010,48.29519396,213.76,213.75,0.1]
[1758675709201,84.63519396,213.76,213.75,0.1]
[1758675709566,84.6355954,213.76,213.75,0.1]
[1758675713325,38.61974508,213.76,213.75,0.1]
[1758675714296,43.86788879,213.76,213.75,0.1]
[1758675715228,43.29788879,213.76,213.75,0.1]
[1758675715813,4.67814371,213.76,213.75,0.1]
[1758675715981,43.29788879,213.76,213.75,0.1]
[1758675720992,43.86788879,213.76,213.75,0.1]
[1758675721618,57.4634828,213.76,213.75,0.1]
[1758675721816,56.8934828,213.76,213.75,0.1]
[1758675722810,57.4634828,213.76,213.75,0.1]
[1758675725531,58.63571631,213.76,213.75,0.1]
[1758675725842,58.63571631,213.76,213.69,0.82]
[1758675725843,39.59559401,213.7,213.69,0.1]
[1758675726022,79.3875726,213.7,213.69,0.1]
[1758675726225,43.6175726,213.7,213.69,0.1]
[1758675726426,79.9775726,213.7,213.69,0.1]
[1758675726632,79.9780396,213.7,213.69,1e-08]
[1758675726840,13.59559401,213.69,213.68,0.27045455]
[1758675727048,53.4080396,213.69,213.68,0.27045455]
[1758675727218,53.4080396,213.69,213.57,0.1]
[1758675727219,13.59559401,213.65,213.57,0.1]
[1758675727419,44.27768034,213.58,213.57,0.1]
[1758675727634,13.59559401,213.57,213.51,0.72]
[1758675727826,2.27974508,213.52,213.51,0.72]
[1758675728034,26.0,213.54,213.51,0.72]
[1758675728222,26.0,213.5,213.48,0.72]
[1758675728418,38.67974508,213.49,213.39,18.68163832]
[1758675728643,2.27974508,213.46,213.4,0.72]
[1758675728845,13.59559401,213.53,213.4,2.99974508]
[1758675729044,26.0,213.54,213.38,0.10498252]
[1758675729045,26.0,213.49,213.41,17.12035611]
[1758675729228,26.0,213.49,213.42,0.72]
[1758675729433,2.27974508,213.44,213.42,0.72]
[1758675729737,62.54,213.46,213.42,0.72]
[1758675729923,28.27974508,213.43,213.42,0.72]
[1758675730125,26.0,213.41,213.38,0.10498252]
[1758675730314,26.0,213.4,213.38,0.10498252]
[1758675730515,36.64,213.47,213.39,2.27974508]
[1758675730722,36.64,213.47,213.38,4.79130971]
[1758675730723,28.27974508,213.44,213.4,0.72]
[1758675731022,2.27974508,213.41,213.38,0.10498252]
[1758675731223,2.27974508,213.39,213.38,0.82498252]
[1758675731436,36.72,213.4,213.38,0.82498252]
[1758675731437,2.27974508,213.4,213.38,0.82498252]
[1758675731641,26.0,213.39,213.38,0.82498252]
[1758675732155,26.0,213.41,213.38,5.51141307]
[1758675732321,2.27974508,213.4,213.39,0.72]
[1758675732527,2.27974508,213.4,213.38,0.10498252]
[1758675733127,26.0,213.4,213.39,0.72]
[1758675733325,13.59559401,213.49,213.39,0.72]
[1758675733641,28.27974508,213.45,213.39,0.72]
[1758675733952,26.0,213.43,213.39,17.12189324]
[1758675734119,26.0,213.43,213.4,2.99974508]
[1758675734322,26.0,213.44,213.41,0.72]
[1758675734750,26.0,213.44,213.38,0.10498252]
[1758675734751,2.27974508,213.42,213.38,0.10498252]
[1758675734956,2.27974508,213.39,213.38,0.82498252]
[1758675735247,26.0,213.46,213.38,5.51142575]
[1758675735427,28.27974508,213.42,213.39,0.72]
[1758675735624,28.27974508,213.42,213.38,0.10498252]
[1758675735625,2.27974508,213.4,213.38,0.10498252]
[1758675735934,2.27974508,213.39,213.38,0.10498252]
[1758675737447,6.96600029,213.39,213.38,0.10498252]
[1758675737748,44.43600029,213.39,213.38,0.10498252]
[1758675737933,7.53600029,213.39,213.38,0.10498252]
[1758675738128,44.43600029,213.39,213.38,0.10498252]
[1758675739837,44.43600029,213.39,213.32,0.11452797]
[1758675739838,26.0,213.36,213.32,0.11452797]
[1758675740045,2.27974508,213.34,213.32,0.11452797]
[1758675740443,2.27974508,213.34,213.31,4.68800995]
[1758675740828,2.27974508,213.34,213.29,4.68831907]
[1758675741340,2.27974508,213.34,213.23,13.59559401]
[1758675741341,2.27974508,213.33,213.27,4.6887449]
[1758675741544,2.27974508,213.32,213.27,4.6887449]
[1758675741739,26.0,213.31,213.27,4.6887449]
[1758675741938,26.0,213.31,213.28,0.68]
[1758675743251,26.0,213.31,213.28,5.36865017]
[1758675743449,26.0,213.31,213.28,0.68]
[1758675743646,26.0,213.3,213.28,0.68]
[1758675744034,26.0,213.3,213.26,6.96885696]
[1758675744234,26.0,213.32,213.27,0.68]
[1758675744459,26.0,213.3,213.28,2.95974508]
[1758675744752,26.0,213.3,213.29,2.45974508]
[1758675744950,26.0,213.3,213.29,0.68]
[1758675745454,26.0,213.3,213.29,5.36845234]
[1758675745756,36.88,213.33,213.29,7.64819742]
[1758675745958,46.47430228,213.54,213.32,2.27974508]
[1758675745959,0.68,213.43,213.32,2.27974508]
[1758675746156,26.0,213.39,213.33,2.95974508]
[1758675746331,2.27974508,213.4,213.33,2.95974508]
[1758675746530,2.27974508,213.39,213.33,2.95974508]
[1758675746752,28.27974508,213.39,213.33,2.95974508]
[1758675747356,2.27974508,213.42,213.36,18.68394454]
[1758675747557,2.27974508,213.44,213.37,2.95974508]
[1758675747865,38.29558775,213.46,213.38,2.95974508]
[1758675748053,75.17558775,213.46,213.38,2.95974508]
[1758675748257,2.27974508,213.45,213.38,2.95974508]
[1758675748447,2.27974508,213.45,213.39,2.95974508]
[1758675748649,75.17558775,213.46,213.39,2.95974508]
[1758675748650,40.57533283,213.46,213.4,2.27974508]
[1758675748853,40.57533283,213.46,213.42,2.27974508]
[1758675748854,38.29558775,213.46,213.42,2.27974508]
[1758675749156,38.29558775,213.46,213.43,2.95974508]
[1758675749453,39.17974508,213.52,213.45,6.964683]
[1758675749633,26.0,213.5,213.46,0.68]
[1758675749831,2.27974508,213.52,213.46,0.68]
[1758675750450,26.0,213.5,213.46,0.68]
[1758675750651,26.0,213.5,213.45,18.67702781]
[1758675750652,2.27974508,213.48,213.42,5.36559647]
[1758675750964,2.27974508,213.47,213.42,5.36559647]
[1758675751361,65.19974508,213.49,213.43,2.95974508]
[1758675751659,0.68,213.58,213.48,2.27974508]
[1758675751862,0.68,213.58,213.42,16.39958766]
[1758675751863,26.0,213.55,213.51,2.27974508]
[1758675752042,26.0,213.55,213.52,2.95974508]
[1758675752237,2.27974508,213.53,213.47,0.68]
[1758675752560,26.0,213.51,213.47,0.68]
[1758675752863,26.0,213.51,213.45,2.95974508]
[1758675753350,26.0,213.51,213.46,4.68471844]
[1758675753548,26.0,213.51,213.46,5.36471844]
[1758675754442,26.0,213.51,213.46,17.07651456]
[1758675754638,2.27974508,213.55,213.47,2.95974508]
[1758675754856,37.04,213.56,213.51,2.27974508]
[1758675755043,37.04,213.56,213.46,39.8201068]
[1758675755243,26.0,213.53,213.52,2.27974508]
[1758675755469,26.0,213.53,213.52,0.68]
[1758675755971,2.27974508,213.58,213.52,0.68]
[1758675756155,26.0,213.56,213.52,0.68]
[1758675756354,26.0,213.56,213.5,16.39344261]
[1758675756355,2.27974508,213.53,213.39,14.09079167]
[1758675756553,27.46359603,213.5,213.43,2.14359603]
[1758675757071,28.14359603,213.5,213.43,0.68]
[1758675757568,26.68,213.5,213.43,0.68]
[1758675757771,26.68,213.5,213.44,1.46359603]
[1758675758570,26.0,213.5,213.45,6.82853395]
[1758675758850,26.0,213.5,213.47,1.46359603]
[1758675759164,26.0,213.5,213.48,0.68]
[1758675759462,26.0,213.52,213.48,0.68]
[1758675760165,0.68,213.51,213.45,17.54087876]
[1758675760571,0.68,213.51,213.45,19.59482953]
[1758675761176,4.1975468,213.51,213.45,4.36493792]
[1758675761540,29.5175468,213.5,213.45,4.36493792]
[1758675761764,4.1975468,213.49,213.45,4.36493792]
[1758675761950,0.68,213.49,213.45,4.36493792]
[1758675763543,0.68,213.48,213.43,16.39866743]
[1758675763739,0.68,213.48,213.43,17.07866743]
[1758675763940,29.5175468,213.5,213.44,0.68]
[1758675763941,30.1975468,213.5,213.44,0.68]
[1758675764157,26.0,213.48,213.44,4.1975468]
[1758675764753,26.68,213.5,213.45,0.68]
[1758675764959,26.68,213.5,213.46,4.68471844]
[1758675765566,26.0,213.5,213.46,4.68471844]
[1758675765771,26.0,213.5,213.46,17.07651456]
[1758675766152,26.0,213.5,213.47,0.68]
[1758675766467,160.58,213.53,213.47,0.68]
[1758675766966,160.58,213.53,213.48,4.68427955]
[1758675767160,159.9,213.53,213.48,17.07497844]
[1758675767564,160.58,213.53,213.48,17.07497844]
[1758675767765,160.58,213.53,213.48,16.39497844]
[1758675768072,1.173356,213.52,213.48,16.39497844]
[1758675768258,160.58,213.53,213.48,16.39497844]
[1758675768456,159.9,213.53,213.48,16.39497844]
[1758675768661,4.1975468,213.52,213.46,4.68452624]
[1758675768872,3.5175468,213.5,213.46,4.68452624]
[1758675769080,0.68,213.49,213.44,16.39805097]
[1758675769272,0.68,213.49,213.44,19.91559777]
[1758675769450,0.68,213.49,213.44,20.59559777]
[1758675770575,3.5175468,213.5,213.44,16.39805097]
[1758675770763,0.68,213.48,213.44,16.39805097]
[1758675771250,0.68,213.48,213.44,11.71289355]
[1758675771957,0.68,213.47,213.43,8.20292373]
[1758675772269,0.68,213.46,213.43,4.68537693]
[1758675772978,0.68,213.48,213.43,4.68537693]
[1758675773285,3.5175468,213.49,213.43,4.68537693]
[1758675773454,0.68,213.48,213.43,4.68537693]
[1758675773970,0.68,213.48,213.43,17.08881927]
[1758675774275,0.68,213.47,213.43,16.39881927]
[1758675775162,0.68,213.46,213.38,0.69]
[1758675775363,30.1975468,213.46,213.4,3.5175468]
[1758675775569,0.68,213.5,213.42,3.5175468]
[1758675775756,30.1975468,213.49,213.39,16.40171408]
[1758675775962,3.5175468,213.47,213.4,3.5175468]
[1758675776183,4.1975468,213.46,213.39,20.60926088]
[1758675776474,40.6375468,213.47,213.39,20.60926088]
[1758675776775,0.68,213.45,213.39,20.60926088]
[1758675776965,3.5175468,213.44,213.39,17.09171408]
[1758675777285,4.1975468,213.44,213.39,17.09171408]
[1758675778183,0.68,213.44,213.39,17.09171408]
[1758675778356,4.1975468,213.44,213.39,17.09171408]
[1758675778862,3.5175468,213.42,213.39,11.71563803]
[1758675779072,4.1975468,213.42,213.39,11.71563803]
[1758675779659,0.68,213.42,213.39,11.71563803]
[1758675780876,0.68,213.42,213.37,4.68669447]
[1758675780877,3.5175468,213.42,213.37,4.68669447]
[1758675781062,3.5175468,213.42,213.38,0.69]
[1758675781270,3.5175468,213.43,213.38,0.69]
[1758675781466,30.1975468,213.44,213.38,0.69]
[1758675781779,30.1975468,213.44,213.37,19.92097745]
[1758675781780,3.5175468,213.43,213.37,16.40343065]
[1758675782083,26.68,213.42,213.33,0.69]
[1758675782260,3.5175468,213.38,213.33,0.69]
[1758675782462,3.5175468,213.36,213.3,4.68819154]
[1758675782669,2.1453532,213.35,213.3,4.68819154]
[1758675782858,0.68,213.34,213.3,4.68819154]
[1758675783364,0.68,213.34,213.27,11.72186012]
[1758675783560,2.1453532,213.34,213.28,5.37849217]
[1758675783870,1.4653532,213.36,213.29,2.1553532]
[1758675784067,1.4653532,213.39,213.32,1.4653532]
[1758675784271,64.6053532,213.39,213.33,0.69]
[1758675784666,1.4653532,213.39,213.33,0.69]
[1758675784865,38.6053532,213.41,213.35,1.4653532]
[1758675785079,38.6253532,213.44,213.37,1.4653532]
[1758675785298,38.6253532,213.44,213.37,0.69]
[1758675785596,1.4653532,213.45,213.38,2.1553532]
[1758675785886,11.70832615,213.53,213.36,16.40419946]
[1758675785887,1.4653532,213.47,213.4,1.4653532]
[1758675786065,26.0,213.45,213.4,1.4653532]
[1758675786260,29.0653532,213.48,213.41,2.1553532]
[1758675786475,2.1453532,213.48,213.41,2.1553532]
[1758675786666,4.19859709,213.48,213.41,4.20859709]
[1758675786870,30.19859709,213.48,213.41,4.20859709]
[1758675787183,26.68,213.48,213.43,3.51859709]
[1758675787400,11.70499909,213.59,213.46,3.51859709]
[1758675787595,37.98,213.62,213.42,16.39958766]
[1758675787596,0.68,213.54,213.47,4.20859709]
[1758675787770,4.19859709,213.57,213.5,3.51859709]
[1758675787966,4.67967616,213.69,213.51,0.69]
[1758675788166,1.17310955,213.68,213.58,3.51859709]
[1758675788377,3.51859709,213.65,213.59,3.51859709]
[1758675788565,3.51859709,213.63,213.58,0.69]
[1758675788760,4.19859709,213.62,213.55,3.51859709]
[1758675788966,4.19859709,213.62,213.56,16.38883685]
[1758675789377,0.68,213.62,213.56,19.90743394]